[Event "*** Titled Tuesday Blitz"]
[Site "Chess.com"]
[Date "2019.03.05"]
[Round "3"]
[White "XiaoKangZhong"]
[Black "MaxiAMueller"]
[Result "1-0"]
[WhiteElo "2102"]
[BlackElo "2026"]
[TimeControl "180+2"]
[EndTime "13:39:52 PST"]
[Termination "XiaoKangZhong won on time"]

1. e4 {[%clk 0:03:01.9]} 1... c5 {[%clk 0:02:56.6]} 2. Nf3 {[%clk 0:03:02.3]}
2... d6 {[%clk 0:02:57.5]} 3. Bb5+ {[%clk 0:03:02.9]} 3... Bd7 {[%clk 0:02:56]}
4. Bxd7+ {[%clk 0:03:03.7]} 4... Qxd7 {[%clk 0:02:55.9]} 5. O-O {[%clk
0:03:05.6]} 5... Nc6 {[%clk 0:02:52.4]} 6. c3 {[%clk 0:03:06]} 6... g6 {[%clk
0:02:50.4]} 7. Qe2 {[%clk 0:03:03.3]} 7... Bg7 {[%clk 0:02:49.7]} 8. Rd1 {[%clk
0:03:04.3]} 8... e6 {[%clk 0:02:39.8]} 9. d4 {[%clk 0:03:04.8]} 9... cxd4 {[%clk
0:02:39]} 10. cxd4 {[%clk 0:03:03.8]} 10... Nge7 {[%clk 0:02:35.3]} 11. Nc3
{[%clk 0:03:03.5]} 11... d5 {[%clk 0:02:28.1]} 12. e5 {[%clk 0:03:02.3]} 12...
O-O {[%clk 0:02:20.9]} 13. Bg5 {[%clk 0:02:58.1]} 13... Rfc8 {[%clk 0:02:14.7]}
14. Qe3 {[%clk 0:02:43.2]} 14... Na5 {[%clk 0:01:49.4]} 15. Qf4 {[%clk 0:02:41]}
15... Nc4 {[%clk 0:01:36.6]} 16. Rab1 {[%clk 0:02:19.8]} 16... Nxb2 {[%clk
0:01:34]} 17. Rxb2 {[%clk 0:02:20.8]} 17... Rxc3 {[%clk 0:01:34.3]} 18. Bf6
{[%clk 0:02:04.6]} 18... Bxf6 {[%clk 0:01:03.9]} 19. exf6 {[%clk 0:02:01.2]}
19... Nf5 {[%clk 0:01:04.8]} 20. g4 {[%clk 0:01:58.2]} 20... Qd6 {[%clk
0:00:57.7]} 21. Ne5 {[%clk 0:01:58]} 21... Rac8 {[%clk 0:00:15]} 22. gxf5 {[%clk
0:01:56.2]} 22... exf5 {[%clk 0:00:14.6]} 23. Qh4 {[%clk 0:01:44.4]} 23... b6
{[%clk 0:00:08.8]} 24. Nd7 {[%clk 0:01:41.7]} 24... Rc1 {[%clk 0:00:05.3]} 25.
Rd2 {[%clk 0:01:38.2]} 25... Rxd1+ {[%clk 0:00:04.1]} 26. Rxd1 {[%clk 0:01:39]}
1-0

[Event "*** Titled Tuesday Blitz"]
[Site "Chess.com"]
[Date "2019.03.05"]
[Round "3"]
[White "Al_Shima"]
[Black "StephenDedalus83"]
[Result "0-1"]
[WhiteElo "2443"]
[BlackElo "2701"]
[TimeControl "180+2"]
[EndTime "13:40:17 PST"]
[Termination "StephenDedalus83 won by resignation"]

1. b3 {[%clk 0:03:01.9]} 1... d5 {[%clk 0:02:59.4]} 2. Bb2 {[%clk 0:03:03]} 2...
c5 {[%clk 0:03:00.2]} 3. e3 {[%clk 0:03:01.4]} 3... a6 {[%clk 0:03:01.2]} 4. g3
{[%clk 0:03:01.3]} 4... Nc6 {[%clk 0:03:01.7]} 5. Bg2 {[%clk 0:03:02.3]} 5... e5
{[%clk 0:03:02.7]} 6. d3 {[%clk 0:03:02.6]} 6... Be6 {[%clk 0:02:58.4]} 7. Nd2
{[%clk 0:03:02.9]} 7... Qd7 {[%clk 0:02:57.7]} 8. h3 {[%clk 0:03:02.9]} 8... f6
{[%clk 0:02:51.2]} 9. a3 {[%clk 0:02:56.2]} 9... Nge7 {[%clk 0:02:51.6]} 10. Ne2
{[%clk 0:02:54.8]} 10... h5 {[%clk 0:02:51]} 11. h4 {[%clk 0:02:52.4]} 11... g6
{[%clk 0:02:50.9]} 12. e4 {[%clk 0:02:50.9]} 12... d4 {[%clk 0:02:49.7]} 13. O-O
{[%clk 0:02:41.3]} 13... Bh6 {[%clk 0:02:48.9]} 14. Bc1 {[%clk 0:02:40.8]} 14...
O-O {[%clk 0:02:36.6]} 15. Nc4 {[%clk 0:02:40.9]} 15... Bxc1 {[%clk 0:02:36]}
16. Qxc1 {[%clk 0:02:41.7]} 16... Bxc4 {[%clk 0:02:26.8]} 17. bxc4 {[%clk
0:02:42]} 17... Kg7 {[%clk 0:02:27.2]} 18. Kh2 {[%clk 0:02:42.4]} 18... b5
{[%clk 0:02:27]} 19. Bh3 {[%clk 0:02:40.5]} 19... Qd6 {[%clk 0:02:25.7]} 20.
cxb5 {[%clk 0:02:35.3]} 20... axb5 {[%clk 0:02:26.4]} 21. f4 {[%clk 0:02:31]}
21... c4 {[%clk 0:02:26.1]} 22. f5 {[%clk 0:02:31.2]} 22... Ra6 {[%clk
0:02:01.4]} 23. fxg6 {[%clk 0:02:31.2]} 23... Rfa8 {[%clk 0:02:01.9]} 24. g4
{[%clk 0:02:17.9]} 24... hxg4 {[%clk 0:02:02.2]} 25. Bxg4 {[%clk 0:02:18]} 25...
Rxa3 {[%clk 0:02:03.6]} 26. Rxa3 {[%clk 0:02:17.8]} 26... Qxa3 {[%clk
0:02:04.3]} 27. Qd1 {[%clk 0:02:10.7]} 27... cxd3 {[%clk 0:01:41.2]} 28. cxd3
{[%clk 0:02:10.9]} 28... Nb4 {[%clk 0:01:42.1]} 29. Nc1 {[%clk 0:02:02]} 29...
Qb2+ {[%clk 0:01:39.2]} 30. Kh1 {[%clk 0:02:02.2]} 30... Nxg6 {[%clk 0:01:35.5]}
31. Qf3 {[%clk 0:01:58.3]} 31... Nf4 {[%clk 0:01:36.1]} 32. Qg3 {[%clk
0:01:48.4]} 32... Kf7 {[%clk 0:01:36.3]} 33. Ne2 {[%clk 0:01:25.7]} 33... Nbxd3
{[%clk 0:01:25.9]} 34. Bh5+ {[%clk 0:01:18.5]} 34... Nxh5 {[%clk 0:01:26]} 35.
Qxd3 {[%clk 0:01:18.9]} 35... Ra2 {[%clk 0:01:26.5]} 36. Qh3 {[%clk 0:01:07.4]}
36... Qxe2 {[%clk 0:01:20.9]} 37. Qd7+ {[%clk 0:01:06.9]} 37... Kg6 {[%clk
0:01:21.7]} 38. Qe8+ {[%clk 0:00:59.9]} 38... Kh7 {[%clk 0:01:22.4]} 0-1

[Event "*** Titled Tuesday Blitz"]
[Site "Chess.com"]
[Date "2019.03.05"]
[Round "3"]
[White "Karina_Oparina"]
[Black "Blagorod"]
[Result "0-1"]
[WhiteElo "2162"]
[BlackElo "2144"]
[TimeControl "180+2"]
[EndTime "13:40:17 PST"]
[Termination "Blagorod won on time"]

1. Nf3 {[%clk 0:02:49.8]} 1... Nc6 {[%clk 0:03:00]} 2. g3 {[%clk 0:02:47.3]}
2... e5 {[%clk 0:02:58]} 3. d3 {[%clk 0:02:45.5]} 3... Nf6 {[%clk 0:02:53.1]} 4.
Bg2 {[%clk 0:02:45.4]} 4... d6 {[%clk 0:02:51.1]} 5. c4 {[%clk 0:02:44.4]} 5...
g6 {[%clk 0:02:48.5]} 6. O-O {[%clk 0:02:42.8]} 6... Bg7 {[%clk 0:02:48.2]} 7.
Nc3 {[%clk 0:02:39]} 7... O-O {[%clk 0:02:48.4]} 8. Rb1 {[%clk 0:02:36.5]} 8...
h6 {[%clk 0:02:39.6]} 9. b4 {[%clk 0:02:34.7]} 9... Rb8 {[%clk 0:02:31.8]} 10.
b5 {[%clk 0:02:32.2]} 10... Ne7 {[%clk 0:02:31.7]} 11. a4 {[%clk 0:02:30]} 11...
Be6 {[%clk 0:02:30.2]} 12. h3 {[%clk 0:02:12.1]} 12... Qd7 {[%clk 0:02:29.7]}
13. Kh2 {[%clk 0:02:10.3]} 13... e4 {[%clk 0:02:22.7]} 14. Nd4 {[%clk
0:02:00.6]} 14... exd3 {[%clk 0:01:54.2]} 15. Qxd3 {[%clk 0:00:42.2]} 15... Nf5
{[%clk 0:01:41.6]} 16. Nxe6 {[%clk 0:00:38]} 16... Qxe6 {[%clk 0:01:41.6]} 17.
Bb2 {[%clk 0:00:27.9]} 17... h5 {[%clk 0:01:31.1]} 18. Nd5 {[%clk 0:00:21.6]}
18... Nxd5 {[%clk 0:01:22.7]} 19. Bxd5 {[%clk 0:00:20.2]} 19... Qe7 {[%clk
0:01:19.8]} 20. Bxg7 {[%clk 0:00:18.1]} 20... Kxg7 {[%clk 0:01:17.1]} 21. e4
{[%clk 0:00:17.9]} 21... Nh6 {[%clk 0:01:12.4]} 22. Qd4+ {[%clk 0:00:14.8]}
22... Qe5 {[%clk 0:01:11.8]} 23. Qxe5+ {[%clk 0:00:12.5]} 23... dxe5 {[%clk
0:01:12.6]} 24. c5 {[%clk 0:00:12.1]} 24... Rfd8 {[%clk 0:01:09.9]} 25. Rfd1
{[%clk 0:00:11.7]} 25... Ng8 {[%clk 0:01:09.4]} 26. Bc4 {[%clk 0:00:09.1]} 26...
Nf6 {[%clk 0:01:09.3]} 0-1

[Event "*** Titled Tuesday Blitz"]
[Site "Chess.com"]
[Date "2019.03.05"]
[Round "3"]
[White "Svet99"]
[Black "Orest_Vovk"]
[Result "0-1"]
[WhiteElo "2144"]
[BlackElo "2148"]
[TimeControl "180+2"]
[EndTime "13:40:24 PST"]
[Termination "Orest_Vovk won by resignation"]

1. Nf3 {[%clk 0:03:01.9]} 1... h6 {[%clk 0:02:54.7]} 2. d4 {[%clk 0:03:01.9]}
2... g5 {[%clk 0:02:55.5]} 3. h4 {[%clk 0:03:01.7]} 3... g4 {[%clk 0:02:56.1]}
4. Ne5 {[%clk 0:03:01.9]} 4... d6 {[%clk 0:02:57.5]} 5. Nd3 {[%clk 0:02:59.9]}
5... Bg7 {[%clk 0:02:58.9]} 6. c3 {[%clk 0:02:57.6]} 6... Bf5 {[%clk 0:02:56.2]}
7. Be3 {[%clk 0:02:56]} 7... Nf6 {[%clk 0:02:55.9]} 8. Nd2 {[%clk 0:02:53.6]}
8... Nd5 {[%clk 0:02:55.5]} 9. Qb3 {[%clk 0:02:35.3]} 9... e6 {[%clk 0:02:40.5]}
10. c4 {[%clk 0:02:27.1]} 10... Nxe3 {[%clk 0:02:40.5]} 11. fxe3 {[%clk
0:02:27.8]} 11... b6 {[%clk 0:02:34]} 12. g3 {[%clk 0:02:26.7]} 12... Nd7 {[%clk
0:02:32.9]} 13. Bg2 {[%clk 0:02:27.2]} 13... Rc8 {[%clk 0:02:27.1]} 14. O-O
{[%clk 0:02:13.4]} 14... O-O {[%clk 0:02:26.4]} 15. Nb4 {[%clk 0:02:05.6]} 15...
Nb8 {[%clk 0:02:22.9]} 16. Nc6 {[%clk 0:02:04.4]} 16... Nxc6 {[%clk 0:02:23.1]}
17. Bxc6 {[%clk 0:02:04.8]} 17... Qe7 {[%clk 0:02:20.1]} 18. Kh2 {[%clk
0:02:03]} 18... Bg6 {[%clk 0:02:19.8]} 19. Qb5 {[%clk 0:01:50.9]} 19... e5
{[%clk 0:02:18.9]} 20. Rae1 {[%clk 0:01:33.7]} 20... exd4 {[%clk 0:02:15.7]} 21.
exd4 {[%clk 0:01:34]} 21... Bxd4 {[%clk 0:02:16.9]} 22. e3 {[%clk 0:01:26.3]}
22... Be5 {[%clk 0:02:17.6]} 23. Kg2 {[%clk 0:01:21.7]} 23... f5 {[%clk
0:02:16]} 24. h5 {[%clk 0:01:05.1]} 24... Bxh5 {[%clk 0:02:13.7]} 25. Bd7 {[%clk
0:00:59.7]} 25... Rcd8 {[%clk 0:02:09.5]} 26. Bxf5 {[%clk 0:00:59.8]} 26... Qg5
{[%clk 0:02:06.9]} 27. Ne4 {[%clk 0:00:56.9]} 27... Qg7 {[%clk 0:02:05.4]} 28.
Be6+ {[%clk 0:00:53.6]} 28... Kh8 {[%clk 0:02:01.5]} 29. Rh1 {[%clk 0:00:46]}
29... Be8 {[%clk 0:01:53.2]} 30. Qd5 {[%clk 0:00:39.9]} 30... Rf3 {[%clk
0:01:49.9]} 31. Ref1 {[%clk 0:00:38.3]} 31... c6 {[%clk 0:01:47]} 32. Qd1 {[%clk
0:00:33.1]} 32... Bg6 {[%clk 0:01:47]} 33. Bxg4 {[%clk 0:00:15.5]} 33... Bxe4
{[%clk 0:01:45.2]} 34. Rxf3 {[%clk 0:00:06.3]} 34... Qxg4 {[%clk 0:01:43.1]} 35.
Rxh6+ {[%clk 0:00:06.8]} 35... Kg7 {[%clk 0:01:43.8]} 36. Rh4 {[%clk 0:00:06.8]}
36... Qxg3+ {[%clk 0:01:44.4]} 37. Kf1 {[%clk 0:00:06.6]} 0-1

[Event "*** Titled Tuesday Blitz"]
[Site "Chess.com"]
[Date "2019.03.05"]
[Round "3"]
[White "WPWPWP-2015"]
[Black "IIIlllII1llIl"]
[Result "0-1"]
[WhiteElo "2397"]
[BlackElo "2575"]
[TimeControl "180+2"]
[EndTime "13:40:28 PST"]
[Termination "IIIlllII1llIl won by resignation"]

1. e4 {[%clk 0:03:01.9]} 1... c5 {[%clk 0:03:00.5]} 2. Nf3 {[%clk 0:03:02.5]}
2... d6 {[%clk 0:03:01.7]} 3. d4 {[%clk 0:03:01.3]} 3... cxd4 {[%clk 0:03:03.6]}
4. Nxd4 {[%clk 0:03:02.4]} 4... Nf6 {[%clk 0:03:04.1]} 5. Nc3 {[%clk 0:03:03.7]}
5... a6 {[%clk 0:03:05.2]} 6. h3 {[%clk 0:03:04.9]} 6... e5 {[%clk 0:03:06.1]}
7. Nde2 {[%clk 0:03:06.2]} 7... h5 {[%clk 0:03:06.4]} 8. Nd5 {[%clk 0:03:06.9]}
8... Nxe4 {[%clk 0:02:50.5]} 9. Be3 {[%clk 0:03:07.5]} 9... Nd7 {[%clk 0:02:49]}
10. g3 {[%clk 0:03:08.2]} 10... Nef6 {[%clk 0:02:40.2]} 11. Nec3 {[%clk
0:03:07.5]} 11... Be7 {[%clk 0:02:10.2]} 12. Bg2 {[%clk 0:03:06.1]} 12... h4
{[%clk 0:02:09.1]} 13. g4 {[%clk 0:03:06]} 13... O-O {[%clk 0:02:08.4]} 14. Qd2
{[%clk 0:02:44.8]} 14... Nxd5 {[%clk 0:02:07]} 15. Nxd5 {[%clk 0:02:44.6]} 15...
Nc5 {[%clk 0:01:32.5]} 16. O-O-O {[%clk 0:02:32.3]} 16... Be6 {[%clk 0:01:22.1]}
17. Nxe7+ {[%clk 0:02:27.1]} 17... Qxe7 {[%clk 0:01:23.1]} 18. Qxd6 {[%clk
0:02:27.9]} 18... Qxd6 {[%clk 0:01:22.6]} 19. Rxd6 {[%clk 0:02:28]} 19... Rac8
{[%clk 0:01:21.1]} 20. b3 {[%clk 0:01:40.7]} 20... b5 {[%clk 0:00:57.6]} 21. Bc6
{[%clk 0:01:31]} 21... Rxc6 {[%clk 0:00:46.7]} 22. Rxc6 {[%clk 0:01:29.8]} 22...
Bd5 {[%clk 0:00:28.2]} 23. Rxc5 {[%clk 0:01:26.7]} 23... Bxh1 {[%clk 0:00:28.9]}
24. Rxe5 {[%clk 0:01:27.3]} 24... f6 {[%clk 0:00:27.9]} 25. Rh5 {[%clk
0:01:17.2]} 25... g6 {[%clk 0:00:17.6]} 26. Rd5 {[%clk 0:00:59]} 26... Bxd5
{[%clk 0:00:17.7]} 27. c3 {[%clk 0:00:57.9]} 27... Bg2 {[%clk 0:00:18]} 28. f3
{[%clk 0:00:58]} 28... Bxh3 {[%clk 0:00:18.4]} 29. Bf2 {[%clk 0:00:59.3]} 29...
g5 {[%clk 0:00:19.9]} 30. Kd2 {[%clk 0:01:00.3]} 30... Bg2 {[%clk 0:00:21.1]}
31. Ke2 {[%clk 0:00:59.5]} 31... Re8+ {[%clk 0:00:22.2]} 32. Be3 {[%clk
0:01:00.8]} 32... h3 {[%clk 0:00:23.5]} 33. Kf2 {[%clk 0:01:02.1]} 33... Rxe3
{[%clk 0:00:24.7]} 0-1

[Event "*** Titled Tuesday Blitz"]
[Site "Chess.com"]
[Date "2019.03.05"]
[Round "3"]
[White "fish7728"]
[Black "jamengrand"]
[Result "0-1"]
[WhiteElo "2250"]
[BlackElo "2170"]
[TimeControl "180+2"]
[EndTime "13:40:31 PST"]
[Termination "jamengrand won by resignation"]

1. d4 {[%clk 0:03:00.8]} 1... Nf6 {[%clk 0:03:00.2]} 2. c4 {[%clk 0:03:01.4]}
2... e6 {[%clk 0:03:01.1]} 3. Nc3 {[%clk 0:03:01.7]} 3... Bb4 {[%clk 0:02:21.1]}
4. f3 {[%clk 0:03:01.4]} 4... d5 {[%clk 0:02:20.6]} 5. a3 {[%clk 0:03:01]} 5...
Be7 {[%clk 0:02:20.8]} 6. e4 {[%clk 0:03:00.2]} 6... O-O {[%clk 0:02:21.4]} 7.
e5 {[%clk 0:02:54.6]} 7... Ne8 {[%clk 0:02:22]} 8. c5 {[%clk 0:02:44]} 8... f6
{[%clk 0:02:20.8]} 9. f4 {[%clk 0:02:25]} 9... fxe5 {[%clk 0:02:21.3]} 10. fxe5
{[%clk 0:02:25.4]} 10... b6 {[%clk 0:02:11.1]} 11. b4 {[%clk 0:02:24.9]} 11...
bxc5 {[%clk 0:02:12.2]} 12. bxc5 {[%clk 0:02:24.4]} 12... Ba6 {[%clk 0:01:57.1]}
13. Bxa6 {[%clk 0:02:19.1]} 13... Bh4+ {[%clk 0:01:56.7]} 14. g3 {[%clk
0:02:18.3]} 14... Nxa6 {[%clk 0:01:57.6]} 15. Nf3 {[%clk 0:02:01.8]} 15... Be7
{[%clk 0:01:54.8]} 16. O-O {[%clk 0:02:01.9]} 16... c6 {[%clk 0:01:48.6]} 17.
Be3 {[%clk 0:01:49.8]} 17... Qd7 {[%clk 0:01:45.9]} 18. Rb1 {[%clk 0:01:43.9]}
18... Nec7 {[%clk 0:01:44.9]} 19. a4 {[%clk 0:01:27.1]} 19... Rab8 {[%clk
0:01:44.5]} 20. Qd2 {[%clk 0:01:22.3]} 20... Rxb1 {[%clk 0:01:43.5]} 21. Rxb1
{[%clk 0:01:22]} 21... Rxf3 {[%clk 0:01:43.5]} 22. Bf4 {[%clk 0:01:18.7]} 22...
Nxc5 {[%clk 0:01:35.3]} 23. dxc5 {[%clk 0:01:12.3]} 23... Bxc5+ {[%clk
0:01:36.4]} 24. Kg2 {[%clk 0:01:12.9]} 24... Rf2+ {[%clk 0:01:37.4]} 25. Qxf2
{[%clk 0:01:13.6]} 25... Bxf2 {[%clk 0:01:38.5]} 26. Rb8+ {[%clk 0:01:10.9]}
26... Kf7 {[%clk 0:01:38.9]} 27. Kxf2 {[%clk 0:01:11.8]} 27... Na6 {[%clk
0:01:21.4]} 28. Rb2 {[%clk 0:00:57]} 28... Nc5 {[%clk 0:01:20.5]} 29. Kg2 {[%clk
0:00:23.4]} 29... d4 {[%clk 0:01:19.8]} 30. Nd1 {[%clk 0:00:17.3]} 30... Qd5+
{[%clk 0:01:20]} 31. Kh3 {[%clk 0:00:17.5]} 31... Qf3 {[%clk 0:01:17.2]} 32. Rf2
{[%clk 0:00:17.2]} 32... Qxd1 {[%clk 0:01:15.2]} 33. Bg5+ {[%clk 0:00:16.1]}
33... Kg6 {[%clk 0:01:16.4]} 34. Bf4 {[%clk 0:00:16.5]} 34... Ne4 {[%clk
0:01:13.3]} 0-1

[Event "*** Titled Tuesday Blitz"]
[Site "Chess.com"]
[Date "2019.03.05"]
[Round "3"]
[White "AvitalBor"]
[Black "Cryptochess"]
[Result "1-0"]
[WhiteElo "2651"]
[BlackElo "2537"]
[TimeControl "180+2"]
[EndTime "13:40:33 PST"]
[Termination "AvitalBor won on time"]

1. Nf3 {[%clk 0:03:01.9]} 1... Nf6 {[%clk 0:02:59.6]} 2. c4 {[%clk 0:02:59.3]}
2... e6 {[%clk 0:02:59.7]} 3. Nc3 {[%clk 0:03:00.1]} 3... d5 {[%clk 0:03:01.3]}
4. e3 {[%clk 0:03:01.5]} 4... Be7 {[%clk 0:03:00.5]} 5. b3 {[%clk 0:03:02.8]}
5... O-O {[%clk 0:03:01.7]} 6. Bb2 {[%clk 0:03:03.7]} 6... b6 {[%clk 0:03:02.2]}
7. cxd5 {[%clk 0:03:04]} 7... exd5 {[%clk 0:03:01.9]} 8. d4 {[%clk 0:03:04.9]}
8... Re8 {[%clk 0:03:00.4]} 9. Be2 {[%clk 0:03:03.9]} 9... Bb7 {[%clk
0:02:51.5]} 10. O-O {[%clk 0:03:05.4]} 10... Nbd7 {[%clk 0:02:51.7]} 11. Rc1
{[%clk 0:03:06.5]} 11... a6 {[%clk 0:02:52.2]} 12. Qc2 {[%clk 0:02:50.1]} 12...
Bd6 {[%clk 0:02:52.1]} 13. Rfd1 {[%clk 0:02:48.6]} 13... Qe7 {[%clk 0:02:43.7]}
14. h3 {[%clk 0:02:32.9]} 14... Ne4 {[%clk 0:02:09]} 15. Nxe4 {[%clk 0:02:32.9]}
15... dxe4 {[%clk 0:02:10.9]} 16. Nd2 {[%clk 0:02:34.2]} 16... Qg5 {[%clk
0:01:56.6]} 17. Nc4 {[%clk 0:02:30.9]} 17... Bf8 {[%clk 0:01:51.6]} 18. Ne5
{[%clk 0:02:25.6]} 18... Nxe5 {[%clk 0:01:43.9]} 19. dxe5 {[%clk 0:02:27.5]}
19... c5 {[%clk 0:01:45.1]} 20. Bc4 {[%clk 0:02:27.3]} 20... Rad8 {[%clk
0:01:20.9]} 21. a4 {[%clk 0:02:26.5]} 21... Rxd1+ {[%clk 0:01:13.5]} 22. Rxd1
{[%clk 0:02:28.4]} 22... Rd8 {[%clk 0:01:15]} 23. Rd2 {[%clk 0:02:20.2]} 23...
Qe7 {[%clk 0:01:09]} 24. Qd1 {[%clk 0:02:10.4]} 24... Rxd2 {[%clk 0:01:09]} 25.
Qxd2 {[%clk 0:02:12.3]} 25... g6 {[%clk 0:01:09.7]} 26. Qe2 {[%clk 0:02:06.6]}
26... a5 {[%clk 0:01:08.5]} 27. Qg4 {[%clk 0:01:19.7]} 27... Bg7 {[%clk
0:01:04.1]} 28. Qf4 {[%clk 0:01:20.6]} 28... h6 {[%clk 0:00:50.5]} 29. e6 {[%clk
0:01:07.3]} 29... Bxb2 {[%clk 0:00:15]} 30. exf7+ {[%clk 0:01:07.3]} 30... Kg7
{[%clk 0:00:09.5]} 31. Qb8 {[%clk 0:01:07.3]} 1-0

[Event "*** Titled Tuesday Blitz"]
[Site "Chess.com"]
[Date "2019.03.05"]
[Round "3"]
[White "731291"]
[Black "Alopekos"]
[Result "1-0"]
[WhiteElo "2679"]
[BlackElo "2438"]
[TimeControl "180+2"]
[EndTime "13:40:41 PST"]
[Termination "731291 won on time"]

1. e4 {[%clk 0:03:01.9]} 1... e5 {[%clk 0:02:59.8]} 2. Nf3 {[%clk 0:03:02.5]}
2... Nc6 {[%clk 0:03:00.1]} 3. Bb5 {[%clk 0:03:02.5]} 3... a6 {[%clk 0:03:01.4]}
4. Ba4 {[%clk 0:03:03.6]} 4... Nf6 {[%clk 0:03:03]} 5. d3 {[%clk 0:03:04.3]}
5... d6 {[%clk 0:02:59.6]} 6. c4 {[%clk 0:03:04.3]} 6... g6 {[%clk 0:02:57.3]}
7. O-O {[%clk 0:03:04.3]} 7... Bg7 {[%clk 0:02:58.6]} 8. Nc3 {[%clk 0:03:05.2]}
8... O-O {[%clk 0:03:00.1]} 9. a3 {[%clk 0:03:02.3]} 9... h6 {[%clk 0:02:44.4]}
10. b4 {[%clk 0:02:46.2]} 10... Nh5 {[%clk 0:02:43.4]} 11. Bb3 {[%clk
0:02:26.5]} 11... Kh7 {[%clk 0:02:07.8]} 12. h3 {[%clk 0:01:58.9]} 12... f5
{[%clk 0:01:30.6]} 13. exf5 {[%clk 0:01:59.8]} 13... gxf5 {[%clk 0:01:32.5]} 14.
Ng5+ {[%clk 0:01:59.2]} 14... Kg6 {[%clk 0:01:33.1]} 15. Nf3 {[%clk 0:01:48]}
15... e4 {[%clk 0:01:26.3]} 16. dxe4 {[%clk 0:01:13.1]} 16... Bxc3 {[%clk
0:01:26]} 17. exf5+ {[%clk 0:01:13.5]} 17... Bxf5 {[%clk 0:01:26.2]} 18. Bxh6
{[%clk 0:01:12.2]} 18... Bxa1 {[%clk 0:00:39.6]} 19. Bxf8 {[%clk 0:01:13.3]}
19... Bf6 {[%clk 0:00:29.5]} 20. Bc2 {[%clk 0:01:14.6]} 20... Bxc2 {[%clk
0:00:17.5]} 21. Qxc2+ {[%clk 0:01:16.5]} 21... Kf7 {[%clk 0:00:18.8]} 22. Bh6
{[%clk 0:01:13.9]} 22... Qh8 {[%clk 0:00:12.6]} 23. Bg5 {[%clk 0:01:12.6]} 23...
Rg8 {[%clk 0:00:12.5]} 24. h4 {[%clk 0:01:12.4]} 24... Ne5 {[%clk 0:00:09.8]}
25. Qf5 {[%clk 0:01:09.5]} 25... Rg6 {[%clk 0:00:03.3]} 26. Nxe5+ {[%clk
0:01:07.9]} 26... dxe5 {[%clk 0:00:04.2]} 27. Rd1 {[%clk 0:01:09.8]} 27... Qe8
{[%clk 0:00:02.8]} 28. Rd7+ {[%clk 0:01:08.4]} 28... Kg8 {[%clk 0:00:04.1]} 29.
Bxf6 {[%clk 0:01:04.1]} 29... Nxf6 {[%clk 0:00:04.1]} 30. Rxc7 {[%clk
0:00:59.5]} 1-0

[Event "*** Titled Tuesday Blitz"]
[Site "Chess.com"]
[Date "2019.03.05"]
[Round "3"]
[White "alpasya2009"]
[Black "x-3738459472"]
[Result "1-0"]
[WhiteElo "2542"]
[BlackElo "2448"]
[TimeControl "180+2"]
[EndTime "13:40:44 PST"]
[Termination "alpasya2009 won by checkmate"]

1. d4 {[%clk 0:03:00.8]} 1... Nf6 {[%clk 0:02:59.7]} 2. c4 {[%clk 0:03:01.4]}
2... c5 {[%clk 0:03:00.5]} 3. d5 {[%clk 0:03:02]} 3... e5 {[%clk 0:03:01.5]} 4.
Nc3 {[%clk 0:03:02.4]} 4... d6 {[%clk 0:03:02.7]} 5. e4 {[%clk 0:03:02.9]} 5...
Be7 {[%clk 0:03:04.1]} 6. Bd3 {[%clk 0:03:02.6]} 6... Nbd7 {[%clk 0:03:04.5]} 7.
Nge2 {[%clk 0:03:02.9]} 7... h5 {[%clk 0:03:06]} 8. O-O {[%clk 0:03:01.5]} 8...
h4 {[%clk 0:03:06.8]} 9. f4 {[%clk 0:02:57.3]} 9... exf4 {[%clk 0:03:07.2]} 10.
Bxf4 {[%clk 0:02:56.4]} 10... Ng4 {[%clk 0:03:07.5]} 11. Bc2 {[%clk 0:02:52.2]}
11... Nge5 {[%clk 0:03:03.8]} 12. Ba4 {[%clk 0:02:42.2]} 12... Bf6 {[%clk
0:02:59.9]} 13. Nb5 {[%clk 0:02:31.3]} 13... O-O {[%clk 0:02:51.7]} 14. Nxd6
{[%clk 0:02:28.1]} 14... Qb6 {[%clk 0:02:50.1]} 15. Nxc8 {[%clk 0:02:27.6]}
15... Raxc8 {[%clk 0:02:50.1]} 16. Qc2 {[%clk 0:02:28.1]} 16... Qd6 {[%clk
0:02:32.4]} 17. Nc1 {[%clk 0:02:01.6]} 17... Nb6 {[%clk 0:02:25.4]} 18. Bb3
{[%clk 0:01:57]} 18... g5 {[%clk 0:02:20.6]} 19. Bxe5 {[%clk 0:01:34.1]} 19...
Bxe5 {[%clk 0:02:21.2]} 20. h3 {[%clk 0:01:30.9]} 20... Bd4+ {[%clk 0:02:13.2]}
21. Kh1 {[%clk 0:01:22.3]} 21... Rce8 {[%clk 0:02:10.8]} 22. Ne2 {[%clk
0:01:04.9]} 22... Bg7 {[%clk 0:02:07.6]} 23. Ng1 {[%clk 0:01:03.9]} 23... Qe5
{[%clk 0:02:05.6]} 24. Rae1 {[%clk 0:01:02]} 24... Qxb2 {[%clk 0:02:01.7]} 25.
Qd1 {[%clk 0:01:03.4]} 25... Qd4 {[%clk 0:01:49]} 26. Qh5 {[%clk 0:01:02.5]}
26... Rxe4 {[%clk 0:01:43.7]} 27. Bc2 {[%clk 0:00:59.9]} 27... f5 {[%clk
0:01:33.9]} 28. Bxe4 {[%clk 0:00:59.4]} 28... fxe4 {[%clk 0:01:34.8]} 29. Rxf8+
{[%clk 0:01:00.6]} 29... Kxf8 {[%clk 0:01:36.1]} 30. Rf1+ {[%clk 0:00:58.3]}
30... Kg8 {[%clk 0:01:34.2]} 31. Qe8+ {[%clk 0:00:49.2]} 31... Kh7 {[%clk
0:01:34.8]} 32. Qh5+ {[%clk 0:00:48.2]} 32... Kg8 {[%clk 0:01:35.4]} 33. Qf7+
{[%clk 0:00:49.1]} 33... Kh8 {[%clk 0:01:32]} 34. Rf5 {[%clk 0:00:32.1]} 34...
Nxc4 {[%clk 0:01:18.4]} 35. Rxg5 {[%clk 0:00:27.9]} 35... Qe3 {[%clk 0:01:05.4]}
36. Qxg7# {[%clk 0:00:27.5]} 1-0